bitfinex-derivatives/quotes_SOLF0:USTF0_20250221
["timestamp","ask_amount","ask_price","bid_price","bid_amount"]
[1740144301760,15.0702917,179.77,179.66,15.0702917]
[1740144302164,5.5621,179.75,179.66,15.0702917]
[1740144302363,15.0702917,179.77,179.66,15.0702917]
[1740144302562,0.03821045,179.72,179.66,15.0702917]
[1740144302759,0.03821045,179.72,179.71,5.5632]
[1740144305269,1.045e-05,179.72,179.71,61.2032]
[1740144306064,1.045e-05,179.72,179.71,5.5632]
[1740144306261,1.045e-05,179.72,179.71,61.2032]
[1740144311683,1.045e-05,179.72,179.71,5.5632]
[1740144312183,1.045e-05,179.72,179.71,61.2032]
[1740144314884,193.0,179.83,179.71,55.64]
[1740144315083,18.6079917,179.86,179.76,15.0702917]
[1740144315984,18.6079917,179.86,179.8,5.5602]
[1740144316282,0.03520468,179.83,179.79,0.03536844]
[1740144316582,0.03520468,179.83,179.8,5.5602]
[1740144317377,0.03520468,179.83,179.81,5.5599]
[1740144317780,0.03520468,179.83,179.79,0.03536844]
[1740144317980,0.03520468,179.83,179.82,5.5598]
[1740144319584,0.03520468,179.83,179.8,5.5602]
[1740144319977,0.03520468,179.83,179.79,0.03536844]
[1740144320181,5.5605,179.8,179.79,0.03536844]
[1740144320583,5.5612,179.78,179.74,5.5622]
[1740144321080,5.5612,179.78,179.7,15.0702917]
[1740144321276,5.5612,179.78,179.74,5.5621]
[1740144321481,15.0702917,179.83,179.7,15.0702917]
[1740144321676,15.0702917,179.83,179.74,5.5621]
[1740144321891,0.03670563,179.78,179.74,5.5621]
[1740144322179,5.59800563,179.78,179.7,15.0702917]
[1740144322777,5.562,179.76,179.73,5.5626]
[1740144323188,0.03670563,179.78,179.73,5.5626]
[1740144323885,0.03670563,179.78,179.69,3.483]
[1740144324085,0.03670563,179.78,179.72,5.5629]
[1740144324385,5.5621,179.75,179.72,5.5629]
[1740144324888,5.5621,179.75,179.71,5.563]
[1740144325087,5.5621,179.75,179.69,3.483]
[1740144325387,5.60474129,179.75,179.69,3.483]
[1740144325684,0.04264129,179.75,179.65,86.67667028]
[1740144325884,15.0702917,179.74,179.65,71.60637858]
[1740144326283,0.03689052,179.71,179.65,71.60637858]
[1740144326484,15.10718222,179.71,179.65,71.60637858]
[1740144326691,5.5641,179.69,179.65,77.17137858]
[1740144326884,5.5641,179.69,179.65,71.60637858]
[1740144327182,15.10718222,179.71,179.65,71.60637858]
[1740144327383,5.5643,179.68,179.65,71.60637858]
[1740144327589,15.10718222,179.71,179.64,5.5652]
[1740144327986,15.10718222,179.71,179.61,149.0905]
[1740144328687,0.03689052,179.71,179.61,149.0905]
[1740144329387,5.60019052,179.71,179.67,5.5643]
[1740144329584,0.03689052,179.71,179.61,149.0905]
[1740144329791,5.5642,179.68,179.65,5.565]
[1740144329992,0.03689052,179.71,179.65,5.565]
[1740144330595,15.10718222,179.71,179.64,5.5652]
[1740144331297,3.5091,179.7,179.64,5.5652]
[1740144331592,5.5642,179.68,179.64,5.5652]
[1740144331794,5.5642,179.68,179.61,145.64]
[1740144331795,3.5091,179.7,179.65,5.5651]
[1740144331997,5.5641,179.69,179.65,5.5651]
[1740144332185,5.60205011,179.69,179.65,5.5651]
[1740144332386,0.03795011,179.69,179.61,145.64]
[1740144332586,5.60185011,179.69,179.61,145.64]
[1740144332796,0.03795011,179.69,179.61,145.64]
[1740144333295,0.03795011,179.69,179.63,15.0702917]
[1740144333794,0.03795011,179.69,179.68,5.5642]
[1740144335700,5.011e-05,179.69,179.68,5.5642]
[1740144337195,5.011e-05,179.69,179.67,0.03631414]
[1740144337999,5.011e-05,179.69,179.67,5.60081414]
[1740144338401,5.011e-05,179.69,179.67,0.03631414]
[1740144339198,5.011e-05,179.69,179.67,5.60051414]
[1740144339796,5.011e-05,179.69,179.67,0.03631414]
[1740144341290,5.011e-05,179.69,179.61,5.566]
[1740144341902,5.5651,179.66,179.61,5.566]
[1740144342204,1.6838,179.7,179.59,15.0702917]
[1740144342595,0.03837219,179.66,179.59,15.0702917]
[1740144343199,0.03837219,179.66,179.63,5.5656]
[1740144343400,0.03837219,179.66,179.59,15.0702917]
[1740144343997,0.03837219,179.66,179.65,5.5651]
[1740144344795,0.03837219,179.66,179.65,20.6353917]
[1740144344995,1.7006,179.75,179.65,70.7302917]
[1740144345196,9.1142,179.76,179.68,15.0702917]
[1740144345505,3.5523,179.76,179.68,15.0702917]
[1740144346308,0.04250711,179.74,179.7,0.0401163]
[1740144346501,5.60500711,179.74,179.7,5.6036163]
[1740144347099,5.5631,179.72,179.7,0.0401163]
[1740144347601,5.5637,179.7,179.54,22.8419293]
[1740144347804,15.0702917,179.73,179.61,15.0702917]
[1740144348000,1.7534,179.72,179.61,15.0702917]
[1740144348206,1.7534,179.72,179.63,5.5656]
[1740144348405,1.7534,179.72,179.61,15.0702917]
[1740144349003,0.03711229,179.68,179.61,15.0702917]
[1740144349405,0.03711229,179.68,179.67,5.5645]
[1740144351708,1.229e-05,179.68,179.67,20.6347917]
[1740144354314,1.229e-05,179.68,179.67,5.5645]
[1740144358812,1.7979,179.78,179.67,5.5645]
[1740144358813,189.6882626,179.88,179.67,55.66]
[1740144359009,15.0702917,179.82,179.73,15.0702917]
[1740144359214,15.0702917,179.79,179.67,18.6186917]
[1740144359414,3.397,179.78,179.71,5.5632]
[1740144359717,3.397,179.78,179.67,18.6186917]
[1740144359917,0.03852731,179.76,179.73,0.03955779]
[1740144360612,15.10881901,179.76,179.73,0.03955779]
[1740144360818,70.73881901,179.76,179.73,0.03955779]
[1740144361317,76.30071901,179.76,179.73,0.03955779]
[1740144362017,5.562,179.75,179.73,0.03955779]
[1740144362418,55.64,179.75,179.73,0.03955779]
[1740144362920,15.10881901,179.76,179.73,0.03955779]
[1740144363118,15.10881901,179.76,179.73,5.60215779]
[1740144364522,20.67061901,179.76,179.73,0.03955779]
[1740144364815,15.10881901,179.76,179.73,0.03955779]
[1740144365019,20.67061901,179.76,179.73,0.03955779]
[1740144365714,15.10881901,179.76,179.73,0.03955779]
[1740144366121,15.10881901,179.76,179.73,5.60205779]
[1740144366421,20.67061901,179.76,179.73,5.60205779]
[1740144366721,15.10881901,179.76,179.74,5.5622]
[1740144366922,15.10881901,179.76,179.73,0.03955779]
[1740144367416,20.67051901,179.76,179.73,5.60185779]
[1740144367623,15.10881901,179.76,179.73,0.03955779]
[1740144368923,20.67051901,179.76,179.73,5.60195779]
[1740144369124,0.03852731,179.76,179.73,0.03955779]
[1740144369716,0.03852731,179.76,179.75,5.562]
[1740144373821,2.731e-05,179.76,179.75,5.562]
[1740144374021,2.731e-05,179.76,179.75,61.192]
[1740144374321,15.0702917,179.88,179.75,55.63]
[1740144374526,4.50262873,179.9,179.78,15.0702917]
[1740144375030,16.7572917,179.91,179.81,15.0702917]
[1740144375031,1.687,179.91,179.81,15.0702917]
[1740144375425,4.938e-05,179.85,179.84,20.6294917]
[1740144375625,432.38446942,179.94,179.84,15.0702917]
[1740144376022,432.38446942,179.94,179.89,5.5576]
[1740144376324,432.38446942,179.94,179.84,15.0702917]
[1740144376520,0.03723481,179.93,179.9,0.04235124]
[1740144376719,0.03723481,179.93,179.82,1.7187]
[1740144376932,15.0702917,179.94,179.9,0.03621864]
[1740144377121,15.0702917,179.94,179.82,1.7187]
[1740144377122,0.03719299,179.89,179.82,1.7187]
[1740144377430,15.0702917,179.94,179.82,1.7187]
[1740144377632,0.03767948,179.87,179.84,0.03765687]
[1740144377833,5.5568,179.92,179.86,5.5586]
[1740144378028,0.04149255,179.87,179.84,0.03765687]
[1740144378326,15.0702917,179.91,179.84,0.0351777]
[1740144378528,0.04000457,179.87,179.78,15.0702917]
[1740144378727,0.04000457,179.87,179.86,0.0363851]
[1740144378924,5.59830457,179.87,179.81,5.5599]
[1740144379233,0.04000457,179.87,179.78,15.0702917]
[1740144380133,0.04000457,179.87,179.81,0.03855604]
[1740144380431,0.04000457,179.87,179.81,15.10884774]
[1740144380833,0.04000457,179.87,179.81,0.03855604]
[1740144381322,5.5592,179.84,179.81,0.03855604]
[1740144382230,5.559,179.85,179.81,0.03855604]
[1740144382730,20.6290917,179.86,179.81,5.59865604]
[1740144383123,0.04000457,179.87,179.81,0.03855604]
[1740144383332,0.04000457,179.87,179.83,5.5593]
[1740144383633,0.04000457,179.87,179.81,15.10884774]
[1740144384331,0.04000457,179.87,179.85,5.5588]
[1740144384635,0.04000457,179.87,179.81,15.10884774]
[1740144384934,0.04000457,179.87,179.86,5.5586]
[1740144385732,4.57e-06,179.87,179.86,5.5586]
[1740144386035,4.57e-06,179.87,179.86,61.1586]
[1740144386737,5.2045,179.99,179.86,55.6]
[1740144386937,5.5549,179.98,179.94,5.556]
[1740144387232,15.0702917,179.98,179.86,1.658]
[1740144387432,15.0702917,179.98,179.86,16.7282917]
[1740144387833,0.03862026,179.94,179.9,0.0384704]
[1740144388031,0.03862026,179.94,179.93,5.5564]
[1740144388235,0.03862026,179.94,179.9,0.0384704]
[1740144389525,5.5571,179.91,179.9,0.0384704]
[1740144390236,5.5568,179.92,179.9,0.0384704]
[1740144390435,0.03862026,179.94,179.9,0.0384704]
[1740144391134,5.59482026,179.94,179.9,0.0384704]
[1740144391829,0.03862026,179.94,179.9,0.0384704]
[1740144392634,5.5565,179.93,179.9,0.0384704]
[1740144392840,0.03862026,179.94,179.9,0.0384704]
[1740144393034,5.5565,179.93,179.9,0.0384704]
[1740144393243,0.03862026,179.94,179.9,0.0384704]
[1740144394038,5.557,179.92,179.9,0.0384704]
[1740144395639,5.5565,179.93,179.9,0.0384704]
[1740144396336,5.5568,179.92,179.9,0.0384704]
[1740144397241,5.5571,179.91,179.9,0.0384704]
[1740144397632,0.03862026,179.94,179.9,0.0384704]
[1740144397842,5.5565,179.93,179.9,0.0384704]
[1740144398039,0.03862026,179.94,179.9,0.0384704]
[1740144398344,5.5565,179.93,179.9,0.0384704]
[1740144399036,5.557,179.92,179.9,0.0384704]
[1740144399943,0.03862026,179.94,179.9,0.0384704]
[1740144401841,20.6273917,179.91,179.9,0.0384704]
[1740144402143,15.0702917,179.91,179.8,1.8084]
[1740144402342,3.4555,179.9,179.8,1.8084]
[1740144402544,3.4555,179.9,179.78,1.6805]
[1740144403245,0.03779044,179.86,179.82,0.04083706]
[1740144403942,0.03779044,179.86,179.83,5.5595]
[1740144404145,0.03779044,179.86,179.82,0.04083706]
[1740144405246,0.03779044,179.86,179.85,5.5589]
[1740144406342,0.03779044,179.86,179.84,5.5592]
[1740144406545,0.03779044,179.86,179.82,0.04083706]
[1740144407145,0.03779044,179.86,179.85,5.5589]
[1740144408740,0.03779044,179.86,179.82,0.04083706]
[1740144409145,5.59639044,179.86,179.83,5.5593]
[1740144409649,0.03779044,179.86,179.83,5.5593]
[1740144409842,0.03779044,179.86,179.82,5.60043706]
[1740144410239,0.03779044,179.86,179.82,0.04083706]
[1740144410443,0.03779044,179.86,179.83,5.5593]
[1740144411145,0.03779044,179.86,179.82,0.04083706]
[1740144411350,0.03779044,179.86,179.85,5.5589]
[1740144411752,0.03779044,179.86,179.82,0.04083706]
[1740144412447,5.59649044,179.86,179.82,5.60043706]
[1740144413047,5.59649044,179.86,179.82,0.04083706]
[1740144413252,0.03779044,179.86,179.82,0.04083706]
[1740144413643,5.59659044,179.86,179.82,5.60043706]
[1740144414143,5.5595,179.83,179.82,0.04083706]
[1740144414750,5.5593,179.84,179.82,0.04083706]
[1740144414953,16.8909917,179.85,179.82,0.04083706]
[1740144415349,0.03779044,179.86,179.82,0.04083706]
[1740144415552,5.59649044,179.86,179.82,0.04083706]
[1740144415848,0.03779044,179.86,179.82,0.04083706]
[1740144416348,0.03779044,179.86,179.82,5.60043706]
[1740144416551,0.03779044,179.86,179.82,0.04083706]
[1740144416754,5.559,179.85,179.82,0.04083706]
[1740144417253,0.03779044,179.86,179.82,0.04083706]
[1740144420051,0.03779044,179.86,179.85,5.5589]
[1740144422852,9.044e-05,179.86,179.85,5.5589]
[1740144423249,9.044e-05,179.86,179.82,0.04083706]
[1740144424457,15.0702917,179.84,179.82,0.04083706]
[1740144424659,15.0702917,179.84,179.75,71.56155952]
[1740144424960,1.8225,179.83,179.75,71.56155952]
[1740144425850,15.0702917,179.78,179.77,0.0370952]
[1740144426054,15.0702917,179.78,179.69,30.45590573]
[1740144426256,15.0702917,179.75,179.69,30.45590573]
[1740144426853,15.0702917,179.78,179.69,30.45590573]
[1740144427053,5.562,179.76,179.69,36.01970573]
[1740144427252,0.04015154,179.75,179.72,0.03847069]
[1740144428959,15.0702917,179.87,179.77,5.5611]
[1740144429355,15.0702917,179.84,179.74,15.0702917]
[1740144429557,15.0702917,179.84,179.71,15.0702917]
[1740144429857,5.5607,179.8,179.71,15.0702917]
[1740144430057,0.04137979,179.79,179.76,0.04057691]
[1740144430754,0.04137979,179.79,179.77,5.5611]
[1740144430954,0.04137979,179.79,179.76,0.04057691]
[1740144431556,24.05622654,179.78,179.68,71.5935921]
[1740144431958,24.05622654,179.78,179.7,5.5635]
[1740144432456,24.05622654,179.78,179.68,71.5935921]
[1740144432657,0.04196522,179.75,179.71,0.03864398]
[1740144435062,0.04196522,179.75,179.68,71.5935921]
[1740144435063,24.09819176,179.75,179.68,71.5935921]
[1740144435263,1.8373,179.74,179.63,7.61397643]
[1740144435463,24.05622654,179.72,179.65,5.565]
[1740144435864,5.5636,179.7,179.65,5.565]
[1740144436164,0.04048033,179.69,179.65,5.565]
[1740144436868,0.04048033,179.69,179.58,27.63862654]
[1740144437060,0.04048033,179.69,179.66,5.5647]
[1740144437457,5.60438033,179.69,179.58,27.63862654]
[1740144437857,0.04048033,179.69,179.58,27.63862654]
[1740144438062,5.5643,179.68,179.64,5.5654]
[1740144438363,24.09670687,179.69,179.55,0.78271884]
[1740144438564,1.8214,179.71,179.59,5.5667]
[1740144438565,5.5652,179.65,179.59,5.5667]
[1740144438866,0.04259054,179.64,179.59,5.5667]
[1740144439062,1.75829054,179.64,179.55,0.78271884]
[1740144439767,24.05622654,179.63,179.53,3.4161]
[1740144439962,25.72362654,179.63,179.53,3.4161]
[1740144440163,0.03970433,179.6,179.53,3.4161]
[1740144440767,0.03970433,179.6,179.58,5.5671]
[1740144441268,0.03970433,179.6,179.59,5.567]
[1740144442672,0.03970433,179.6,179.53,3.4161]
[1740144444369,0.03970433,179.6,179.59,5.567]
[1740144445566,0.03970433,179.6,179.57,5.5675]
[1740144446170,0.03970433,179.6,179.53,1.6777]
[1740144446370,0.03970433,179.6,179.59,5.567]
[1740144448072,4.33e-06,179.6,179.59,5.567]
[1740144453474,4.33e-06,179.6,179.59,61.247]
[1740144455076,1.7199,179.72,179.59,55.68]
[1740144455277,1.7199,179.72,179.56,1.795]
[1740144455278,7.2829,179.72,179.69,5.5636]
[1740144456177,1.7199,179.72,179.62,15.06470593]
[1740144456377,1.75915808,179.72,179.62,15.06470593]
[1740144456573,0.03925808,179.72,179.65,0.03865467]
[1740144457574,0.03925808,179.72,179.71,5.5632]
[1740144466079,0.03925808,179.72,179.7,5.60294252]
[1740144466384,5.60235808,179.72,179.7,0.03944252]
[1740144466581,0.03925808,179.72,179.71,5.5632]
[1740144467179,0.03925808,179.72,179.7,5.60284252]
[1740144467378,0.03925808,179.72,179.7,0.03944252]
[1740144468080,0.03925808,179.72,179.71,5.5632]
[1740144470184,5.808e-05,179.72,179.71,5.5632]
[1740144470378,5.808e-05,179.72,179.71,61.2032]
[1740144472176,5.808e-05,179.72,179.71,5.5632]
[1740144472775,5.808e-05,179.72,179.7,5.60294252]
[1740144473386,5.808e-05,179.72,179.7,0.03944252]
[1740144474285,5.5632,179.71,179.7,0.03944252]
[1740144474686,61.2132,179.71,179.7,0.03944252]
[1740144475082,5.808e-05,179.72,179.7,0.03944252]
[1740144475286,5.56295808,179.72,179.7,0.03944252]
[1740144475690,5.5632,179.71,179.7,0.03944252]
[1740144475891,55.65,179.71,179.61,15.06470593]
[1740144476089,15.06470593,179.7,179.61,15.06470593]
[1740144476286,15.06470593,179.7,179.67,5.5644]
[1740144476887,20.62830593,179.7,179.67,5.5644]
[1740144477091,15.10042642,179.7,179.67,0.04037547]
[1740144477286,55.65,179.69,179.63,5.5655]
[1740144477488,15.06470593,179.67,179.63,5.5655]
[1740144477888,15.10042642,179.7,179.66,5.5648]
[1740144478092,15.06470593,179.7,179.58,16.78010593]
[1740144478293,15.06470593,179.7,179.61,15.06470593]
[1740144478492,0.04119175,179.66,179.65,5.5651]
[1740144478785,0.03554725,179.67,179.62,1.7298]
[1740144479389,0.03554725,179.67,179.66,5.5648]
[1740144479689,4.725e-05,179.67,179.66,5.5648]
[1740144480688,4.725e-05,179.67,179.66,61.2248]
[1740144480891,15.06470593,179.79,179.76,5.5617]
[1740144481093,15.06470593,179.79,179.69,15.06470593]
[1740144481395,15.06470593,179.82,179.69,15.06470593]
[1740144481793,15.06470593,179.82,179.7,1.7204]
[1740144481995,0.03839407,179.77,179.74,0.03603505]
[1740144482790,0.03839407,179.77,179.75,5.562]
[1740144482990,0.03839407,179.77,179.74,0.03603505]
[1740144482991,15.06470593,179.76,179.74,0.03603505]
[1740144483195,70.69470593,179.76,179.74,0.03603505]
[1740144483497,59.2265,179.75,179.63,15.06470593]
[1740144483697,3.5965,179.75,179.63,15.06470593]
[1740144483996,5.5624,179.74,179.63,15.06470593]
[1740144484199,16.87530593,179.76,179.66,15.06470593]
[1740144484394,0.03630329,179.73,179.66,15.06470593]
[1740144484990,0.03630329,179.73,179.72,5.5629]
[1740144485293,0.03630329,179.73,179.66,15.06470593]
[1740144485597,0.03630329,179.73,179.71,5.563]
[1740144485797,5.5622,179.75,179.71,5.563]
[1740144485997,0.03615079,179.74,179.71,5.563]
[1740144486196,0.03615079,179.74,179.63,15.06470593]
[1740144486500,0.03686508,179.7,179.63,15.06470593]
[1740144486800,0.03686508,179.7,179.69,5.5639]
[1740144492198,15.10157101,179.7,179.61,5.2958]
[1740144492393,15.10157101,179.7,179.6,71.62416564]
[1740144492599,15.06470593,179.67,179.63,5.5655]
[1740144492997,15.06470593,179.67,179.6,71.62416564]
[1740144493293,20.62920593,179.67,179.63,5.5657]
[1740144493497,0.03559317,179.65,179.63,5.5657]
[1740144493693,0.03559317,179.65,179.64,5.5654]
[1740144494493,9.317e-05,179.65,179.64,5.5654]
[1740144496703,9.317e-05,179.65,179.63,0.04140207]
[1740144497109,9.317e-05,179.65,179.64,5.5654]
[1740144499006,9.317e-05,179.65,179.63,0.04140207]
[1740144499808,9.317e-05,179.65,179.63,5.60710207]
[1740144500400,9.317e-05,179.65,179.63,0.04140207]
[1740144500702,5.5658,179.63,179.55,1.7668]
[1740144501102,16.80610593,179.64,179.6,5.5666]
[1740144501297,16.80610593,179.64,179.52,86.71969927]
[1740144501797,16.80610593,179.64,179.59,5.5667]
[1740144501997,0.03777561,179.6,179.59,5.5667]
[1740144502405,0.03777561,179.6,179.52,15.06470593]
[1740144503304,0.03777561,179.6,179.59,5.567]
[1740144503998,0.03777561,179.6,179.52,15.06470593]
[1740144504203,0.03777561,179.6,179.5,2.57053471]
[1740144504611,5.567,179.59,179.5,2.57053471]
[1740144504908,5.567,179.59,179.55,5.5679]
[1740144505208,0.03777561,179.6,179.5,2.57053471]
[1740144505405,0.03777561,179.6,179.57,5.5675]
[1740144506711,0.03777561,179.6,179.58,5.5672]
[1740144507607,0.03777561,179.6,179.5,2.57053471]
[1740144507810,0.03777561,179.6,179.59,5.567]
[1740144510415,7.561e-05,179.6,179.59,5.567]
[1740144510614,7.561e-05,179.6,179.59,61.247]
[1740144511011,7.561e-05,179.6,179.59,62.964]
[1740144512112,7.561e-05,179.6,179.59,7.284]
[1740144512314,7.561e-05,179.6,179.59,62.964]
[1740144515615,7.561e-05,179.6,179.59,7.284]
[1740144515806,7.561e-05,179.6,179.59,5.567]
[1740144518520,7.561e-05,179.6,179.59,61.247]
[1740144518720,7.561e-05,179.6,179.59,5.567]
[1740144519018,7.561e-05,179.6,179.59,61.247]
[1740144519319,7.561e-05,179.6,179.59,5.567]
[1740144520919,7.561e-05,179.6,179.59,76.31170593]
[1740144521117,3.5016,179.7,179.68,5.5639]
[1740144521321,15.06470593,179.73,179.62,15.06470593]
[1740144521619,193.0,179.75,179.63,3.4394]
[1740144521816,193.0,179.75,179.71,5.5631]
[1740144522021,15.06470593,179.76,179.71,5.5631]
[1740144522320,0.03909358,179.75,179.71,5.59986403]
[1740144523020,0.03909358,179.75,179.72,5.5629]
[1740144523620,0.03909358,179.75,179.71,5.59986403]
[1740144524021,15.06470593,179.73,179.71,0.03676403]
[1740144524217,15.06470593,179.73,179.67,5.5644]
[1740144524522,15.06470593,179.7,179.6,7.58]
[1740144525417,0.03944723,179.67,179.6,7.58]
[1740144525619,0.03944723,179.67,179.59,16.77120593]
[1740144525819,0.03944723,179.67,179.66,5.5648]
[1740144528323,0.03944723,179.67,179.59,16.77120593]
[1740144528521,0.03944723,179.67,179.65,5.565]
[1740144528723,0.03944723,179.67,179.59,1.7065]
[1740144528922,0.03944723,179.67,179.62,5.5657]
[1740144529121,0.03944723,179.67,179.57,3.5811]
[1740144529325,15.10415316,179.67,179.57,3.5811]
[1740144529625,5.5648,179.66,179.57,3.5811]
[1740144530021,0.03666479,179.63,179.6,5.5664]
[1740144530429,0.03666479,179.63,179.55,1.7146]
[1740144532118,5.5662,179.62,179.58,5.5671]
[1740144532317,0.03666479,179.63,179.53,15.06470593]
[1740144532518,5.567,179.59,179.52,3.5434]
[1740144532721,0.03522833,179.6,179.51,145.62]
[1740144532923,3.61632833,179.6,179.51,145.62]
[1740144533625,3.61632833,179.6,179.55,5.568]
[1740144533823,3.61632833,179.6,179.51,145.62]
[1740144534424,9.18302833,179.6,179.56,5.5678]
[1740144535025,3.61632833,179.6,179.57,5.5675]
[1740144535228,3.61632833,179.6,179.51,145.62]
[1740144535730,3.61632833,179.6,179.57,5.5675]
[1740144536129,3.61632833,179.6,179.58,5.5671]
[1740144536326,3.61632833,179.6,179.51,145.62]
[1740144536828,5.567,179.59,179.51,145.62]
[1740144537530,3.61632833,179.6,179.51,145.62]
[1740144538024,3.61632833,179.6,179.59,5.567]
[1740144538227,0.03522833,179.6,179.59,5.567]
[1740144538627,2.833e-05,179.6,179.59,5.567]
[1740144545035,61.24672833,179.6,179.58,0.03720831]
[1740144545232,55.68,179.59,179.58,0.03720831]
[1740144545734,55.68,179.59,179.47,16.90290593]
[1740144545942,15.06470593,179.61,179.47,16.90290593]
[1740144546240,5.5667,179.6,179.56,5.5676]
[1740144546434,15.06470593,179.61,179.47,16.90290593]
[1740144546633,1.7998,179.6,179.47,16.90290593]
[1740144546833,0.03765837,179.56,179.47,16.90290593]
[1740144547343,0.03765837,179.56,179.54,5.5683]
[1740144547643,0.03765837,179.56,179.47,16.90290593]
[1740144550043,0.03765837,179.56,179.55,5.5682]
[1740144553339,15.1023643,179.56,179.44,26.20790593]
[1740144553643,15.06470593,179.56,179.45,5.1795]
[1740144553838,2.815e-05,179.52,179.47,15.06470593]
[1740144554145,2.815e-05,179.52,179.51,5.5694]
[1740144554944,2.815e-05,179.52,179.42,71.69281302]
[1740144555145,2.815e-05,179.52,179.5,0.0375]
[1740144555347,2.815e-05,179.52,179.42,71.69281302]
[1740144555547,2.815e-05,179.52,179.49,5.57]
[1740144555850,2.815e-05,179.52,179.45,0.0375]
[1740144556046,2.815e-05,179.52,179.42,71.69281302]
[1740144556246,2.815e-05,179.52,179.47,0.0375]
[1740144556444,2.815e-05,179.52,179.5,5.5695]
[1740144557140,248.71,179.51,179.38,30.06540938]
[1740144557347,15.06470593,179.46,179.38,30.06540938]
[1740144558246,0.03990892,179.44,179.38,30.06540938]
[1740144558448,0.03990892,179.44,179.34,15.06470593]
[1740144558638,0.03990892,179.44,179.42,5.5721]
[1740144558840,0.03990892,179.44,179.34,15.06470593]
[1740144560548,0.03990892,179.44,179.43,5.5719]
[1740144564553,0.03990892,179.44,179.34,15.06470593]
[1740144564754,0.03990892,179.44,179.33,1.7856]
[1740144564755,15.06470593,179.43,179.33,1.7856]
[1740144564948,0.03642219,179.41,179.33,1.7856]
[1740144565152,0.03642219,179.41,179.4,5.5729]
[1740144566664,2.219e-05,179.41,179.4,5.5729]
[1740144568559,2.219e-05,179.41,179.39,5.6094]
[1740144568960,2.219e-05,179.41,179.39,0.0364]
[1740144569156,2.219e-05,179.41,179.4,5.5729]
[1740144575859,2.219e-05,179.41,179.4,20.63760593]
[1740144576063,2.219e-05,179.41,179.4,81.78930593]
[1740144576258,15.06470593,179.52,179.4,81.78930593]
[1740144576259,15.06470593,179.52,179.5,5.5698]
[1740144576565,15.06470593,179.55,179.43,15.06470593]
[1740144576864,20.63310593,179.55,179.52,5.5691]
[1740144577063,15.06470593,179.55,179.43,15.06470593]
[1740144577565,0.03585494,179.51,179.47,0.03642219]
[1740144578263,0.03585494,179.51,179.5,5.5698]
[1740144579160,0.03585494,179.51,179.49,5.5698]
[1740144579365,0.03585494,179.51,179.47,0.03642219]
[1740144579863,0.03585494,179.51,179.49,5.5698]
[1740144580165,0.03585494,179.51,179.47,0.03642219]
[1740144580365,0.03585494,179.51,179.5,5.5698]
[1740144581764,5.494e-05,179.51,179.5,5.5698]
[1740144593775,5.494e-05,179.51,179.49,5.57]
[1740144594176,5.494e-05,179.51,179.47,0.03642219]
[1740144594377,5.494e-05,179.51,179.5,5.5698]
[1740144595077,55.71005494,179.51,179.48,5.5703]
[1740144595279,5.494e-05,179.51,179.47,0.03642219]
[1740144595477,5.5698,179.5,179.47,5.60682219]
[1740144596080,5.56975494,179.51,179.48,5.5703]
[1740144597082,5.494e-05,179.51,179.48,5.5703]
[1740144597271,5.494e-05,179.51,179.48,5.5701]
[1740144598072,5.494e-05,179.51,179.49,5.57]
[1740144598479,55.71005494,179.51,179.49,5.57]
[1740144599179,5.56955494,179.51,179.49,5.57]
[1740144599781,5.494e-05,179.51,179.49,5.57]
[1740144600080,5.494e-05,179.51,179.5,5.5698]
[1740144600580,55.71005494,179.51,179.5,5.5698]
[1740144600781,5.494e-05,179.51,179.5,5.5698]
[1740144603877,5.494e-05,179.51,179.5,61.2798]
[1740144604385,5.494e-05,179.51,179.5,5.5698]
[1740144604787,5.494e-05,179.51,179.5,61.2798]
[1740144609191,3.4976,179.63,179.61,5.5661]
[1740144609788,15.06470593,179.64,179.53,15.06470593]
[1740144610190,0.0363064,179.6,179.59,5.567]
[1740144610389,0.0363064,179.6,179.57,0.03821221]
[1740144610889,15.06470593,179.58,179.48,5.0942]
[1740144611387,15.06470593,179.58,179.54,5.5683]
[1740144611590,15.06470593,179.58,179.48,5.0942]
[1740144611994,0.03713062,179.55,179.51,0.03406492]
[1740144612491,3.062e-05,179.55,179.54,5.5685]
[1740144613193,3.062e-05,179.55,179.54,61.2685]
[1740144613595,3.062e-05,179.55,179.54,5.5685]
[1740144616997,3.062e-05,179.55,179.54,61.2685]
[1740144617400,1.7333,179.65,179.54,55.7]
[1740144617601,1.7333,179.65,179.56,15.06470593]
[1740144618001,7.2984,179.65,179.62,5.5658]
[1740144618601,7.33777509,179.65,179.62,5.60270487]
[1740144619401,5.5657,179.63,179.62,0.03690487]